{"text_format":"1","workbook":"xlsx","n_sheets":7,"sheets":["Instructions","Foundational","Core","TechProf","Exec","Competency List","Career Progression Descriptors"],"not_rendered":{"charts":0,"images":2,"macros":1,"external_links":0,"defined_names":10,"comments":5,"pivot_tables":0},"unopened":[],"bounds":{"document_bytes":16777216,"sheet_cells":100000,"rows_first":2000,"rows_last":500,"rows_between":2000,"halvings":0,"cell_chars":16384,"cell_head_chars":4096},"cells_cut":0,"cells_raw":0,"read":"whole","date_system":"1900"}

{"sheet":"Instructions","index":0,"n_rows":16,"n_cols":3,"rows_kept":16,"cut":false,"hidden":false,"merged":[[13,8,13,11],[15,0,15,1],[14,2,14,4],[15,2,15,4],[14,0,14,1],[0,0,0,4],[5,1,5,4],[9,1,9,4],[13,2,13,4],[4,1,4,4],[8,1,8,4],[10,1,10,4],[2,0,2,4],[12,0,12,4],[3,1,3,4],[7,0,7,4],[13,0,13,1]]}
["Competency Assessment Tool"]
[]
["About "]
[null,"Competencies are grouped into four categories: Foundational, Core, Technical & Professional, and Executive. \nEach category has its own sheet with a table for each competency within that category."]
[null,"All competencies for each category are listed on the \"Competency List\" sheet. \nIf you identify any specific competencies you might need that were not addressed, add those to the list. \nThere are also additional tables on each competency sheet to add them as well."]
[null,"The \"Career Progression Descriptors\" sheet can be used to assist you in rating your competency level as novice, intermediate, or expert."]
[]
["Directions"]
["Step 1","Select the sheet for the competency category you would like to rate."]
["Step 2","Then, for each competency, rate your knowledge, experience and current skill level by placing an X in the appropriate column (novice, intermediate, or expert). \n\nNOTE: Refer to the Career Progression Descriptors for assistance."]
["Step 3","Once you have completed all competencies, work with a mentor in your organization to review, and change where needed, your assessments made in steps 1 & 2."]
[]
["Additional Information"]
["\nShading",null,"\nThe bottom right cell for each item will not show any value or shading until the Importance value is input. Shading is a continuum from green (for low values) to red (for high values)."]
["Summary",null,"Shows a summary of values (discussed above) that were calculated on the Foundational, Core, Tech/Prof and Exec worksheet tabs.  "]
["I/C Ratio in the Summary tab\n(importance/competence ratio)",null,"This percentage is a function of the Competence calculation and the Importance placed on the development of the competency. A higher number indicates a greater need to develop this competency."]

{"sheet":"Foundational","index":1,"n_rows":133,"n_cols":13,"rows_kept":133,"cut":false,"hidden":false,"merged":[[127,0,127,5],[65,0,65,5],[34,0,34,5],[104,7,104,12],[73,0,73,5],[112,7,112,12],[119,0,119,5],[41,0,41,5],[80,7,80,12],[49,0,49,5],[88,7,88,12],[41,7,41,12],[49,7,49,12],[88,0,88,5],[96,0,96,5],[104,0,104,5],[2,0,2,5],[26,0,26,5],[18,0,18,5],[10,0,10,5],[0,0,0,12],[2,7,2,12],[10,7,10,12],[18,7,18,12],[26,7,26,12],[34,7,34,12],[57,0,57,5],[112,0,112,5],[96,7,96,12],[57,7,57,12],[65,7,65,12],[73,7,73,12],[80,0,80,5]]}
["Foundational Competencies"]
[]
["Leading through personal example",null,null,null,null,null,null,"Planning emergency preparedness"]
["F1","Novice ","Intermediate","Expert","Competence","Importance",null,"F6","Novice ","Intermediate","Expert","Competence","Importance"]
["Knowledge",null,null,null,null,null,null,"Knowledge"]
["Experience",null,null,null,null,null,null,"Experience"]
["Current",null,null,null,null,null,null,"Current"]
[null,{"$f":"COUNTA(B5:B7)*1","v":0},{"$f":"COUNTA(C5:C7)*2","v":0},{"$f":"COUNTA(D5:D7)*3","v":0},{"$f":"(B8+C8+D8)/9","v":0},{"$f":"IF(F5=0,\"\",F5/(B8+C8+D8))","v":""},null,null,{"$f":"COUNTA(I5:I7)*1","v":0},{"$f":"COUNTA(J5:J7)*2","v":0},{"$f":"COUNTA(K5:K7)*3","v":0},{"$f":"(I8+J8+K8)/9","v":0},{"$f":"IF(M5=0,\"\",M5/(I8+J8+K8))","v":""}]
[]
[]
["Managing risk/providing assurance",null,null,null,null,null,null,"Actively listening"]
["F2","Novice ","Intermediate","Expert","Competence","Importance",null,"F7","Novice ","Intermediate","Expert","Competence","Importance"]
["Knowledge",null,null,null,null,null,null,"Knowledge"]
["Experience",null,null,null,null,null,null,"Experience"]
["Current",null,null,null,null,null,null,"Current"]
[null,{"$f":"COUNTA(B13:B15)*1","v":0},{"$f":"COUNTA(C13:C15)*2","v":0},{"$f":"COUNTA(D13:D15)*3","v":0},{"$f":"(B16+C16+D16)/9","v":0},{"$f":"IF(F13=0,\"\",F13/(B16+C16+D16))","v":""},null,null,{"$f":"COUNTA(I13:I15)*1","v":0},{"$f":"COUNTA(J13:J15)*2","v":0},{"$f":"COUNTA(K13:K15)*3","v":0},{"$f":"(I16+J16+K16)/9","v":0},{"$f":"IF(M13=0,\"\",M13/(I16+J16+K16))","v":""}]
[]
[]
["Delivering SH&E communication",null,null,null,null,null,null,"Involving others"]
["F3","Novice ","Intermediate","Expert","Competence","Importance",null,"F8","Novice ","Intermediate","Expert","Competence","Importance"]
["Knowledge",null,null,null,null,null,null,"Knowledge"]
["Experience",null,null,null,null,null,null,"Experience"]
["Current",null,null,null,null,null,null,"Current"]
[null,{"$f":"COUNTA(B21:B23)*1","v":0},{"$f":"COUNTA(C21:C23)*2","v":0},{"$f":"COUNTA(D21:D23)*3","v":0},{"$f":"(B24+C24+D24)/9","v":0},{"$f":"IF(F21=0,\"\",F21/(B24+C24+D24))","v":""},null,null,{"$f":"COUNTA(I21:I23)*1","v":0},{"$f":"COUNTA(J21:J23)*2","v":0},{"$f":"COUNTA(K21:K23)*3","v":0},{"$f":"(I24+J24+K24)/9","v":0},{"$f":"IF(M21=0,\"\",M21/(I24+J24+K24))","v":""}]
[]
[]
["Managing change",null,null,null,null,null,null,"Influencing others"]
["F4","Novice ","Intermediate","Expert","Competence","Importance",null,"F9","Novice ","Intermediate","Expert","Competence","Importance"]
["Knowledge",null,null,null,null,null,null,"Knowledge"]
["Experience",null,null,null,null,null,null,"Experience"]
["Current",null,null,null,null,null,null,"Current"]
[null,{"$f":"COUNTA(B29:B31)*1","v":0},{"$f":"COUNTA(C29:C31)*2","v":0},{"$f":"COUNTA(D29:D31)*3","v":0},{"$f":"(B32+C32+D32)/9","v":0},{"$f":"IF(F29=0,\"\",F29/(B32+C32+D32))","v":""},null,null,{"$f":"COUNTA(I29:I31)*1","v":0},{"$f":"COUNTA(J29:J31)*2","v":0},{"$f":"COUNTA(K29:K31)*3","v":0},{"$f":"(I32+J32+K32)/9","v":0},{"$f":"IF(M29=0,\"\",M29/(I32+J32+K32))","v":""}]
[]
[]
["Effective accident investigation",null,null,null,null,null,null,"Proper use of written, spoken language(s)"]
["F5","Novice","Intermediate","Expert","Competence","Importance",null,"F10","Novice ","Intermediate","Expert","Competence","Importance"]
["Knowledge",null,null,null,null,null,null,"Knowledge"]
["Experience",null,null,null,null,null,null,"Experience"]
["Current",null,null,null,null,null,null,"Current"]
[null,{"$f":"COUNTA(B37:B39)*1","v":0},{"$f":"COUNTA(C37:C39)*2","v":0},{"$f":"COUNTA(D37:D39)*3","v":0},{"$f":"(B40+C40+D40)/9","v":0},{"$f":"IF(F37=0,\"\",F37/(B40+C40+D40))","v":""},null,null,{"$f":"COUNTA(I37:I39)*1","v":0},{"$f":"COUNTA(J37:J39)*2","v":0},{"$f":"COUNTA(K37:K39)*3","v":0},{"$f":"(I40+J40+K40)/9","v":0},{"$f":"IF(M37=0,\"\",M37/(I40+J40+K40))","v":""}]
[]
["Understanding body language",null,null,null,null,null,null,"Web use"]
["F11","Novice ","Intermediate","Expert","Competence","Importance",null,"F16","Novice ","Intermediate","Expert","Competence","Importance"]
["Knowledge",null,null,null,null,null,null,"Knowledge"]
["Experience",null,null,null,null,null,null,"Experience"]
["Current",null,null,null,null,null,null,"Current"]
[null,{"$f":"COUNTA(B44:B46)*1","v":0},{"$f":"COUNTA(C44:C46)*2","v":0},{"$f":"COUNTA(D44:D46)*3","v":0},{"$f":"(B47+C47+D47)/9","v":0},{"$f":"IF(F44=0,\"\",F44/(B47+C47+D47))","v":""},null,null,{"$f":"COUNTA(I44:I46)*1","v":0},{"$f":"COUNTA(J44:J46)*2","v":0},{"$f":"COUNTA(K44:K46)*3","v":0},{"$f":"(I47+J47+K47)/9","v":0},{"$f":"IF(M44=0,\"\",M44/(I47+J47+K47))","v":""}]
[]
[]
["Timely and relevant communication",null,null,null,null,null,null,"Personal productivity"]
["F12","Novice ","Intermediate","Expert","Competence","Importance",null,"F17","Novice ","Intermediate","Expert","Competence","Importance"]
["Knowledge",null,null,null,null,null,null,"Knowledge"]
["Experience",null,null,null,null,null,null,"Experience"]
["Current",null,null,null,null,null,null,"Current"]
[null,{"$f":"COUNTA(B52:B54)*1","v":0},{"$f":"COUNTA(C52:C54)*2","v":0},{"$f":"COUNTA(D52:D54)*3","v":0},{"$f":"(B55+C55+D55)/9","v":0},{"$f":"IF(F52=0,\"\",F52/(B55+C55+D55))","v":""},null,null,{"$f":"COUNTA(I52:I54)*1","v":0},{"$f":"COUNTA(J52:J54)*2","v":0},{"$f":"COUNTA(K52:K54)*3","v":0},{"$f":"(I55+J55+K55)/9","v":0},{"$f":"IF(M52=0,\"\",M52/(I55+J55+K55))","v":""}]
[]
[]
["Utilizing multimedia",null,null,null,null,null,null,"Connectivity"]
["F13","Novice ","Intermediate","Expert","Competence","Importance",null,"F18","Novice ","Intermediate","Expert","Competence","Importance"]
["Knowledge",null,null,null,null,null,null,"Knowledge"]
["Experience",null,null,null,null,null,null,"Experience"]
["Current",null,null,null,null,null,null,"Current"]
[null,{"$f":"COUNTA(B60:B62)*1","v":0},{"$f":"COUNTA(C60:C62)*2","v":0},{"$f":"COUNTA(D60:D62)*3","v":0},{"$f":"(B63+C63+D63)/9","v":0},{"$f":"IF(F60=0,\"\",F60/(B63+C63+D63))","v":""},null,null,{"$f":"COUNTA(I60:I62)*1","v":0},{"$f":"COUNTA(J60:J62)*2","v":0},{"$f":"COUNTA(K60:K62)*3","v":0},{"$f":"(I63+J63+K63)/9","v":0},{"$f":"IF(M60=0,\"\",M60/(I63+J63+K63))","v":""}]
[]
[]
["Negotiation",null,null,null,null,null,null,"Collaboration"]
["F14","Novice ","Intermediate","Expert","Competence","Importance",null,"F19","Novice ","Intermediate","Expert","Competence","Importance"]
["Knowledge",null,null,null,null,null,null,"Knowledge"]
["Experience",null,null,null,null,null,null,"Experience"]
["Current",null,null,null,null,null,null,"Current"]
[null,{"$f":"COUNTA(B68:B70)*1","v":0},{"$f":"COUNTA(C68:C70)*2","v":0},{"$f":"COUNTA(D68:D70)*3","v":0},{"$f":"(B71+C71+D71)/9","v":0},{"$f":"IF(F68=0,\"\",F68/(B71+C71+D71))","v":""},null,null,{"$f":"COUNTA(I68:I70)*1","v":0},{"$f":"COUNTA(J68:J70)*2","v":0},{"$f":"COUNTA(K68:K70)*3","v":0},{"$f":"(I71+J71+K71)/9","v":0},{"$f":"IF(M68=0,\"\",M68/(I71+J71+K71))","v":""}]
[]
[]
["Relationship building",null,null,null,null,null,null,"Statistical analysis"]
["F15","Novice ","Intermediate","Expert","Competence","Importance",null,"F20","Novice ","Intermediate","Expert","Competence","Importance"]
["Knowledge",null,null,null,null,null,null,"Knowledge"]
["Experience",null,null,null,null,null,null,"Experience"]
["Current",null,null,null,null,null,null,"Current"]
[null,{"$f":"COUNTA(B76:B78)*1","v":0},{"$f":"COUNTA(C76:C78)*2","v":0},{"$f":"COUNTA(D76:D78)*3","v":0},{"$f":"(B79+C79+D79)/9","v":0},{"$f":"IF(F76=0,\"\",F76/(B79+C79+D79))","v":""},null,null,{"$f":"COUNTA(I76:I78)*1","v":0},{"$f":"COUNTA(J76:J78)*2","v":0},{"$f":"COUNTA(K76:K78)*3","v":0},{"$f":"(I79+J79+K79)/9","v":0},{"$f":"IF(M76=0,\"\",M76/(I79+J79+K79))","v":""}]
[]
["Basic business and technical software",null,null,null,null,null,null,"Project estimating"]
["F21","Novice ","Intermediate","Expert","Competence","Importance",null,"F26","Novice ","Intermediate","Expert","Competence","Importance"]
["Knowledge",null,null,null,null,null,null,"Knowledge"]
["Experience",null,null,null,null,null,null,"Experience"]
["Current",null,null,null,null,null,null,"Current"]
[null,{"$f":"COUNTA(B83:B85)*1","v":0},{"$f":"COUNTA(C83:C85)*2","v":0},{"$f":"COUNTA(D83:D85)*3","v":0},{"$f":"(B86+C86+D86)/9","v":0},{"$f":"IF(F83=0,\"\",F83/(B86+C86+D86))","v":""},null,null,{"$f":"COUNTA(I83:I85)*1","v":0},{"$f":"COUNTA(J83:J85)*2","v":0},{"$f":"COUNTA(K83:K85)*3","v":0},{"$f":"(I86+J86+K86)/9","v":0},{"$f":"IF(M83=0,\"\",M83/(I86+J86+K86))","v":""}]
[]
[]
["Information security",null,null,null,null,null,null,"Project controls"]
["F22","Novice ","Intermediate","Expert","Competence","Importance",null,"F27","Novice ","Intermediate","Expert","Competence","Importance"]
["Knowledge",null,null,null,null,null,null,"Knowledge"]
["Experience",null,null,null,null,null,null,"Experience"]
["Current",null,null,null,null,null,null,"Current"]
[null,{"$f":"COUNTA(B91:B93)*1","v":0},{"$f":"COUNTA(C91:C93)*2","v":0},{"$f":"COUNTA(D91:D93)*3","v":0},{"$f":"(B94+C94+D94)/9","v":0},{"$f":"IF(F91=0,\"\",F91/(B94+C94+D94))","v":""},null,null,{"$f":"COUNTA(I91:I93)*1","v":0},{"$f":"COUNTA(J91:J93)*2","v":0},{"$f":"COUNTA(K91:K93)*3","v":0},{"$f":"(I94+J94+K94)/9","v":0},{"$f":"IF(M91=0,\"\",M91/(I94+J94+K94))","v":""}]
[]
[]
["External financial world",null,null,null,null,null,null,"Project risk management"]
["F23","Novice ","Intermediate","Expert","Competence","Importance",null,"F28","Novice ","Intermediate","Expert","Competence","Importance"]
["Knowledge",null,null,null,null,null,null,"Knowledge"]
["Experience",null,null,null,null,null,null,"Experience"]
["Current",null,null,null,null,null,null,"Current"]
[null,{"$f":"COUNTA(B99:B101)*1","v":0},{"$f":"COUNTA(C99:C101)*2","v":0},{"$f":"COUNTA(D99:D101)*3","v":0},{"$f":"(B102+C102+D102)/9","v":0},{"$f":"IF(F99=0,\"\",F99/(B102+C102+D102))","v":""},null,null,{"$f":"COUNTA(I99:I101)*1","v":0},{"$f":"COUNTA(J99:J101)*2","v":0},{"$f":"COUNTA(K99:K101)*3","v":0},{"$f":"(I102+J102+K102)/9","v":0},{"$f":"IF(M99=0,\"\",M99/(I102+J102+K102))","v":""}]
[]
[]
["Accounts, control & planning, and economic evaluation methodology",null,null,null,null,null,null,"Manage needs, sources, and purchases"]
["F24","Novice ","Intermediate","Expert","Competence","Importance",null,"F29","Novice ","Intermediate","Expert","Competence","Importance"]
["Knowledge",null,null,null,null,null,null,"Knowledge"]
["Experience",null,null,null,null,null,null,"Experience"]
["Current",null,null,null,null,null,null,"Current"]
[null,{"$f":"COUNTA(B107:B109)*1","v":0},{"$f":"COUNTA(C107:C109)*2","v":0},{"$f":"COUNTA(D107:D109)*3","v":0},{"$f":"(B110+C110+D110)/9","v":0},{"$f":"IF(F107=0,\"\",F107/(B110+C110+D110))","v":""},null,null,{"$f":"COUNTA(I107:I109)*1","v":0},{"$f":"COUNTA(J107:J109)*2","v":0},{"$f":"COUNTA(K107:K109)*3","v":0},{"$f":"(I110+J110+K110)/9","v":0},{"$f":"IF(M107=0,\"\",M107/(I110+J110+K110))","v":""}]
[]
[]
["Project planning",null,null,null,null,null,null,"This table is for any additional organizational competency you need"]
["F25","Novice ","Intermediate","Expert","Competence","Importance",null,"F30","Novice ","Intermediate","Expert","Competence","Importance"]
["Knowledge",null,null,null,null,null,null,"Knowledge"]
["Experience",null,null,null,null,null,null,"Experience"]
["Current",null,null,null,null,null,null,"Current"]
[null,{"$f":"COUNTA(B115:B117)*1","v":0},{"$f":"COUNTA(C115:C117)*2","v":0},{"$f":"COUNTA(D115:D117)*3","v":0},{"$f":"(B118+C118+D118)/9","v":0},{"$f":"IF(F115=0,\"\",F115/(B118+C118+D118))","v":""},null,null,{"$f":"COUNTA(I115:I117)*1","v":0},{"$f":"COUNTA(J115:J117)*2","v":0},{"$f":"COUNTA(K115:K117)*3","v":0},{"$f":"(I118+J118+K118)/9","v":0},{"$f":"IF(M115=0,\"\",M115/(I118+J118+K118))","v":""}]
[]
["This table is for any additional organizational competency you need"]
["F31","Novice ","Intermediate","Expert","Competence","Importance"]
["Knowledge"]
["Experience"]
["Current"]
[null,{"$f":"COUNTA(B122:B124)*1","v":0},{"$f":"COUNTA(C122:C124)*2","v":0},{"$f":"COUNTA(D122:D124)*3","v":0},{"$f":"(B125+C125+D125)/9","v":0},{"$f":"IF(F122=0,\"\",F122/(B125+C125+D125))","v":""}]
[]
[]
["This table is for any additional organizational competency you need"]
["F32","Novice ","Intermediate","Expert","Competence","Importance"]
["Knowledge"]
["Experience"]
["Current"]
[null,{"$f":"COUNTA(B130:B132)*1","v":0},{"$f":"COUNTA(C130:C132)*2","v":0},{"$f":"COUNTA(D130:D132)*3","v":0},{"$f":"(B133+C133+D133)/9","v":0},{"$f":"IF(F130=0,\"\",F130/(B133+C133+D133))","v":""}]

{"sheet":"Core","index":2,"n_rows":157,"n_cols":13,"rows_kept":157,"cut":false,"hidden":false,"merged":[[135,0,135,5],[73,0,73,5],[143,0,143,5],[41,7,41,12],[151,0,151,5],[49,7,49,12],[119,7,119,12],[57,7,57,12],[127,7,127,12],[65,7,65,12],[112,7,112,12],[49,0,49,5],[119,0,119,5],[57,0,57,5],[127,0,127,5],[65,0,65,5],[0,0,0,12],[2,0,2,5],[73,7,73,12],[10,0,10,5],[80,0,80,5],[18,7,18,12],[26,7,26,12],[34,7,34,12],[41,0,41,5],[2,7,2,12],[112,0,112,5],[10,7,10,12],[80,7,80,12],[18,0,18,5],[88,0,88,5],[26,0,26,5],[96,0,96,5],[34,0,34,5],[104,0,104,5],[88,7,88,12],[96,7,96,12],[104,7,104,12]]}
["Core Competencies"]
[]
["Clear understanding of the business context of the organization",null,null,null,null,null,null,"Aware of competitor's actions and their impact on the business"]
["C1","Novice ","Intermediate","Expert","Competence","Importance",null,"C6","Novice ","Intermediate","Expert","Competence","Importance"]
["Knowledge",null,null,null,null,null,null,"Knowledge"]
["Experience",null,null,null,null,null,null,"Experience"]
["Current",null,null,null,null,null,null,"Current"]
[null,{"$f":"COUNTA(B5:B7)*1","v":0},{"$f":"COUNTA(C5:C7)*2","v":0},{"$f":"COUNTA(D5:D7)*3","v":0},{"$f":"(B8+C8+D8)/9","v":0},{"$f":"IF(F5=0,\"\",F5/(B8+C8+D8))","v":""},null,null,{"$f":"COUNTA(I5:I7)*1","v":0},{"$f":"COUNTA(J5:J7)*2","v":0},{"$f":"COUNTA(K5:K7)*3","v":0},{"$f":"(I8+J8+K8)/9","v":0},{"$f":"IF(M5=0,\"\",M5/(I8+J8+K8))","v":""}]
[]
[]
["Awareness of the broader impact of actions on colleagues, community, and environment",null,null,null,null,null,null,"Thinks outside the normal parameters"]
["C2","Novice ","Intermediate","Expert","Competence","Importance",null,"C7","Novice ","Intermediate","Expert","Competence","Importance"]
["Knowledge",null,null,null,null,null,null,"Knowledge"]
["Experience",null,null,null,null,null,null,"Experience"]
["Current",null,null,null,null,null,null,"Current"]
[null,{"$f":"COUNTA(B13:B15)*1","v":0},{"$f":"COUNTA(C13:C15)*2","v":0},{"$f":"COUNTA(D13:D15)*3","v":0},{"$f":"(B16+C16+D16)/9","v":0},{"$f":"IF(F13=0,\"\",F13/(B16+C16+D16))","v":""},null,null,{"$f":"COUNTA(I13:I15)*1","v":0},{"$f":"COUNTA(J13:J15)*2","v":0},{"$f":"COUNTA(K13:K15)*3","v":0},{"$f":"(I16+J16+K16)/9","v":0},{"$f":"IF(M13=0,\"\",M13/(I16+J16+K16))","v":""}]
[]
[]
["Understands internal & external customer needs/exceeds expectations",null,null,null,null,null,null,"Takes unusual perspectives on situations and challenges"]
["C3","Novice ","Intermediate","Expert","Competence","Importance",null,"C8","Novice ","Intermediate","Expert","Competence","Importance"]
["Knowledge",null,null,null,null,null,null,"Knowledge"]
["Experience",null,null,null,null,null,null,"Experience"]
["Current",null,null,null,null,null,null,"Current"]
[null,{"$f":"COUNTA(B21:B23)*1","v":0},{"$f":"COUNTA(C21:C23)*2","v":0},{"$f":"COUNTA(D21:D23)*3","v":0},{"$f":"(B24+C24+D24)/9","v":0},{"$f":"IF(F21=0,\"\",F21/(B24+C24+D24))","v":""},null,null,{"$f":"COUNTA(I21:I23)*1","v":0},{"$f":"COUNTA(J21:J23)*2","v":0},{"$f":"COUNTA(K21:K23)*3","v":0},{"$f":"(I24+J24+K24)/9","v":0},{"$f":"IF(M21=0,\"\",M21/(I24+J24+K24))","v":""}]
[]
[]
["Considers interrelationships between customers, suppliers, & organization",null,null,null,null,null,null,"Demonstrates openness to new ideas"]
["C4","Novice ","Intermediate","Expert","Competence","Importance",null,"C9","Novice ","Intermediate","Expert","Competence","Importance"]
["Knowledge",null,null,null,null,null,null,"Knowledge"]
["Experience",null,null,null,null,null,null,"Experience"]
["Current",null,null,null,null,null,null,"Current"]
[null,{"$f":"COUNTA(B29:B31)*1","v":0},{"$f":"COUNTA(C29:C31)*2","v":0},{"$f":"COUNTA(D29:D31)*3","v":0},{"$f":"(B32+C32+D32)/9","v":0},{"$f":"IF(F29=0,\"\",F29/(B32+C32+D32))","v":""},null,null,{"$f":"COUNTA(I29:I31)*1","v":0},{"$f":"COUNTA(J29:J31)*2","v":0},{"$f":"COUNTA(K29:K31)*3","v":0},{"$f":"(I32+J32+K32)/9","v":0},{"$f":"IF(M29=0,\"\",M29/(I32+J32+K32))","v":""}]
[]
[]
["Understands business levers; takes advantage of financial and IT tools",null,null,null,null,null,null,"Challenges fixed assumptions, strives for breakthroughs as well as incremental solutions; Actively seeks know-how & opportunities from the external environment and applies them"]
["C5","Novice ","Intermediate","Expert","Competence","Importance",null,"C10","Novice ","Intermediate","Expert","Competence","Importance"]
["Knowledge",null,null,null,null,null,null,"Knowledge"]
["Experience",null,null,null,null,null,null,"Experience"]
["Current",null,null,null,null,null,null,"Current"]
[null,{"$f":"COUNTA(B37:B39)*1","v":0},{"$f":"COUNTA(C37:C39)*2","v":0},{"$f":"COUNTA(D37:D39)*3","v":0},{"$f":"(B40+C40+D40)/9","v":0},{"$f":"IF(F37=0,\"\",F37/(B40+C40+D40))","v":""},null,null,{"$f":"COUNTA(I37:I39)*1","v":0},{"$f":"COUNTA(J37:J39)*2","v":0},{"$f":"COUNTA(K37:K39)*3","v":0},{"$f":"(I40+J40+K40)/9","v":0},{"$f":"IF(M37=0,\"\",M37/(I40+J40+K40))","v":""}]
[]
["Looks for ways to do things better, faster and more efficiently",null,null,null,null,null,null,"Uses a range of styles to influence and gain enrollment"]
["C11","Novice ","Intermediate","Expert","Competence","Importance",null,"C16","Novice ","Intermediate","Expert","Competence","Importance"]
["Knowledge",null,null,null,null,null,null,"Knowledge"]
["Experience",null,null,null,null,null,null,"Experience"]
["Current",null,null,null,null,null,null,"Current"]
[null,{"$f":"COUNTA(B44:B46)*1","v":0},{"$f":"COUNTA(C44:C46)*2","v":0},{"$f":"COUNTA(D44:D46)*3","v":0},{"$f":"(B47+C47+D47)/9","v":0},{"$f":"IF(F44=0,\"\",F44/(B47+C47+D47))","v":""},null,null,{"$f":"COUNTA(I44:I46)*1","v":0},{"$f":"COUNTA(J44:J46)*2","v":0},{"$f":"COUNTA(K44:K46)*3","v":0},{"$f":"(I47+J47+K47)/9","v":0},{"$f":"IF(M44=0,\"\",M44/(I47+J47+K47))","v":""}]
[]
[]
["Inspires others to contribute in a way that ensures alignment",null,null,null,null,null,null,"Facilitates others to play to their strengths"]
["C12","Novice ","Intermediate","Expert","Competence","Importance",null,"C17","Novice ","Intermediate","Expert","Competence","Importance"]
["Knowledge",null,null,null,null,null,null,"Knowledge"]
["Experience",null,null,null,null,null,null,"Experience"]
["Current",null,null,null,null,null,null,"Current"]
[null,{"$f":"COUNTA(B52:B54)*1","v":0},{"$f":"COUNTA(C52:C54)*2","v":0},{"$f":"COUNTA(D52:D54)*3","v":0},{"$f":"(B55+C55+D55)/9","v":0},{"$f":"IF(F52=0,\"\",F52/(B55+C55+D55))","v":""},null,null,{"$f":"COUNTA(I52:I54)*1","v":0},{"$f":"COUNTA(J52:J54)*2","v":0},{"$f":"COUNTA(K52:K54)*3","v":0},{"$f":"(I55+J55+K55)/9","v":0},{"$f":"IF(M52=0,\"\",M52/(I55+J55+K55))","v":""}]
[]
[]
["Willingly takes the lead when challenges occur",null,null,null,null,null,null,"Actively promotes a positive team spirit"]
["C13","Novice ","Intermediate","Expert","Competence","Importance",null,"C18","Novice ","Intermediate","Expert","Competence","Importance"]
["Knowledge",null,null,null,null,null,null,"Knowledge"]
["Experience",null,null,null,null,null,null,"Experience"]
["Current",null,null,null,null,null,null,"Current"]
[null,{"$f":"COUNTA(B60:B62)*1","v":0},{"$f":"COUNTA(C60:C62)*2","v":0},{"$f":"COUNTA(D60:D62)*3","v":0},{"$f":"(B63+C63+D63)/9","v":0},{"$f":"IF(F60=0,\"\",F60/(B63+C63+D63))","v":""},null,null,{"$f":"COUNTA(I60:I62)*1","v":0},{"$f":"COUNTA(J60:J62)*2","v":0},{"$f":"COUNTA(K60:K62)*3","v":0},{"$f":"(I63+J63+K63)/9","v":0},{"$f":"IF(M60=0,\"\",M60/(I63+J63+K63))","v":""}]
[]
[]
["Promotes open & effective communication",null,null,null,null,null,null,"Builds networks to enhance effectiveness and share knowledge"]
["C14","Novice ","Intermediate","Expert","Competence","Importance",null,"C19","Novice ","Intermediate","Expert","Competence","Importance"]
["Knowledge",null,null,null,null,null,null,"Knowledge"]
["Experience",null,null,null,null,null,null,"Experience"]
["Current",null,null,null,null,null,null,"Current"]
[null,{"$f":"COUNTA(B68:B70)*1","v":0},{"$f":"COUNTA(C68:C70)*2","v":0},{"$f":"COUNTA(D68:D70)*3","v":0},{"$f":"(B71+C71+D71)/9","v":0},{"$f":"IF(F68=0,\"\",F68/(B71+C71+D71))","v":""},null,null,{"$f":"COUNTA(I68:I70)*1","v":0},{"$f":"COUNTA(J68:J70)*2","v":0},{"$f":"COUNTA(K68:K70)*3","v":0},{"$f":"(I71+J71+K71)/9","v":0},{"$f":"IF(M68=0,\"\",M68/(I71+J71+K71))","v":""}]
[]
[]
["Coaches others to help their development",null,null,null,null,null,null,"Actively seeks skill & best practice related to own area of contribution"]
["C15","Novice ","Intermediate","Expert","Competence","Importance",null,"C20","Novice ","Intermediate","Expert","Competence","Importance"]
["Knowledge",null,null,null,null,null,null,"Knowledge"]
["Experience",null,null,null,null,null,null,"Experience"]
["Current",null,null,null,null,null,null,"Current"]
[null,{"$f":"COUNTA(B76:B78)*1","v":0},{"$f":"COUNTA(C76:C78)*2","v":0},{"$f":"COUNTA(D76:D78)*3","v":0},{"$f":"(B79+C79+D79)/9","v":0},{"$f":"IF(F76=0,\"\",F76/(B79+C79+D79))","v":""},null,null,{"$f":"COUNTA(I76:I78)*1","v":0},{"$f":"COUNTA(J76:J78)*2","v":0},{"$f":"COUNTA(K76:K78)*3","v":0},{"$f":"(I79+J79+K79)/9","v":0},{"$f":"IF(M76=0,\"\",M76/(I79+J79+K79))","v":""}]
[]
["Demonstrates shared commitment to team success",null,null,null,null,null,null,"Bias for action - 'just do it', progresses issues even when only partial information is available"]
["C21","Novice ","Intermediate","Expert","Competence","Importance",null,"C26","Novice ","Intermediate","Expert","Competence","Importance"]
["Knowledge",null,null,null,null,null,null,"Knowledge"]
["Experience",null,null,null,null,null,null,"Experience"]
["Current",null,null,null,null,null,null,"Current"]
[null,{"$f":"COUNTA(B83:B85)*1","v":0},{"$f":"COUNTA(C83:C85)*2","v":0},{"$f":"COUNTA(D83:D85)*3","v":0},{"$f":"(B86+C86+D86)/9","v":0},{"$f":"IF(F83=0,\"\",F83/(B86+C86+D86))","v":""},null,null,{"$f":"COUNTA(I83:I85)*1","v":0},{"$f":"COUNTA(J83:J85)*2","v":0},{"$f":"COUNTA(K83:K85)*3","v":0},{"$f":"(I86+J86+K86)/9","v":0},{"$f":"IF(M83=0,\"\",M83/(I86+J86+K86))","v":""}]
[]
[]
["Demonstrates respect for other people's cultures and perspectives",null,null,null,null,null,null,"Does things before being asked to or forced to by events; manages the balance of cost and value"]
["C22","Novice ","Intermediate","Expert","Competence","Importance",null,"C27","Novice ","Intermediate","Expert","Competence","Importance"]
["Knowledge",null,null,null,null,null,null,"Knowledge"]
["Experience",null,null,null,null,null,null,"Experience"]
["Current",null,null,null,null,null,null,"Current"]
[null,{"$f":"COUNTA(B91:B93)*1","v":0},{"$f":"COUNTA(C91:C93)*2","v":0},{"$f":"COUNTA(D91:D93)*3","v":0},{"$f":"(B94+C94+D94)/9","v":0},{"$f":"IF(F91=0,\"\",F91/(B94+C94+D94))","v":""},null,null,{"$f":"COUNTA(I91:I93)*1","v":0},{"$f":"COUNTA(J91:J93)*2","v":0},{"$f":"COUNTA(K91:K93)*3","v":0},{"$f":"(I94+J94+K94)/9","v":0},{"$f":"IF(M91=0,\"\",M91/(I94+J94+K94))","v":""}]
[]
[]
["Focuses efforts and prioritizes work to deliver business value",null,null,null,null,null,null,"Information seeking"]
["C23","Novice ","Intermediate","Expert","Competence","Importance",null,"C28","Novice ","Intermediate","Expert","Competence","Importance"]
["Knowledge",null,null,null,null,null,null,"Knowledge"]
["Experience",null,null,null,null,null,null,"Experience"]
["Current",null,null,null,null,null,null,"Current"]
[null,{"$f":"COUNTA(B99:B101)*1","v":0},{"$f":"COUNTA(C99:C101)*2","v":0},{"$f":"COUNTA(D99:D101)*3","v":0},{"$f":"(B102+C102+D102)/9","v":0},{"$f":"IF(F99=0,\"\",F99/(B102+C102+D102))","v":""},null,null,{"$f":"COUNTA(I99:I101)*1","v":0},{"$f":"COUNTA(J99:J101)*2","v":0},{"$f":"COUNTA(K99:K101)*3","v":0},{"$f":"(I102+J102+K102)/9","v":0},{"$f":"IF(M99=0,\"\",M99/(I102+J102+K102))","v":""}]
[]
[]
["Overcomes obstacles / adapts  to achieve outstanding results",null,null,null,null,null,null,"Analytical thinking"]
["C24","Novice ","Intermediate","Expert","Competence","Importance",null,"C29","Novice ","Intermediate","Expert","Competence","Importance"]
["Knowledge",null,null,null,null,null,null,"Knowledge"]
["Experience",null,null,null,null,null,null,"Experience"]
["Current",null,null,null,null,null,null,"Current"]
[null,{"$f":"COUNTA(B107:B109)*1","v":0},{"$f":"COUNTA(C107:C109)*2","v":0},{"$f":"COUNTA(D107:D109)*3","v":0},{"$f":"(B110+C110+D110)/9","v":0},{"$f":"IF(F107=0,\"\",F107/(B110+C110+D110))","v":""},null,null,{"$f":"COUNTA(I107:I109)*1","v":0},{"$f":"COUNTA(J107:J109)*2","v":0},{"$f":"COUNTA(K107:K109)*3","v":0},{"$f":"(I110+J110+K110)/9","v":0},{"$f":"IF(M107=0,\"\",M107/(I110+J110+K110))","v":""}]
[]
[]
["Exceeds expectations of contribution and performance; takes responsibility to achieve SH&E and business goals",null,null,null,null,null,null,"Conceptual thinking"]
["C25","Novice ","Intermediate","Expert","Competence","Importance",null,"C30","Novice ","Intermediate","Expert","Competence","Importance"]
["Knowledge",null,null,null,null,null,null,"Knowledge"]
["Experience",null,null,null,null,null,null,"Experience"]
["Current",null,null,null,null,null,null,"Current"]
[null,{"$f":"COUNTA(B115:B117)*1","v":0},{"$f":"COUNTA(C115:C117)*2","v":0},{"$f":"COUNTA(D115:D117)*3","v":0},{"$f":"(B118+C118+D118)/9","v":0},{"$f":"IF(F115=0,\"\",F115/(B118+C118+D118))","v":""},null,null,{"$f":"COUNTA(I115:I117)*1","v":0},{"$f":"COUNTA(J115:J117)*2","v":0},{"$f":"COUNTA(K115:K117)*3","v":0},{"$f":"(I118+J118+K118)/9","v":0},{"$f":"IF(M115=0,\"\",M115/(I118+J118+K118))","v":""}]
[]
["Planning",null,null,null,null,null,null,"Uses innovative approaches to understand implications of seemingly unrelated information"]
["C31","Novice ","Intermediate","Expert","Competence","Importance",null,"C36","Novice ","Intermediate","Expert","Competence","Importance"]
["Knowledge",null,null,null,null,null,null,"Knowledge"]
["Experience",null,null,null,null,null,null,"Experience"]
["Current",null,null,null,null,null,null,"Current"]
[null,{"$f":"COUNTA(B122:B124)*1","v":0},{"$f":"COUNTA(C122:C124)*2","v":0},{"$f":"COUNTA(D122:D124)*3","v":0},{"$f":"(B125+C125+D125)/9","v":0},{"$f":"IF(F122=0,\"\",F122/(B125+C125+D125))","v":""},null,null,{"$f":"COUNTA(I122:I124)*1","v":0},{"$f":"COUNTA(J122:J124)*2","v":0},{"$f":"COUNTA(K122:K124)*3","v":0},{"$f":"(I125+J125+K125)/9","v":0},{"$f":"IF(M122=0,\"\",M122/(I125+J125+K125))","v":""}]
[]
[]
["Organizational skills",null,null,null,null,null,null,"Takes appropriate risks and manages the implications of actions"]
["C32","Novice ","Intermediate","Expert","Competence","Importance",null,"C37","Novice ","Intermediate","Expert","Competence","Importance"]
["Knowledge",null,null,null,null,null,null,"Knowledge"]
["Experience",null,null,null,null,null,null,"Experience"]
["Current",null,null,null,null,null,null,"Current"]
[null,{"$f":"COUNTA(B130:B132)*1","v":0},{"$f":"COUNTA(C130:C132)*2","v":0},{"$f":"COUNTA(D130:D132)*3","v":0},{"$f":"(B133+C133+D133)/9","v":0},{"$f":"IF(F130=0,\"\",F130/(B133+C133+D133))","v":""},null,null,{"$f":"COUNTA(I130:I132)*1","v":0},{"$f":"COUNTA(J130:J132)*2","v":0},{"$f":"COUNTA(K130:K132)*3","v":0},{"$f":"(I133+J133+K133)/9","v":0},{"$f":"IF(M130=0,\"\",M130/(I133+J133+K133))","v":""}]
[]
[]
["Considers differing positions or opposing viewpoints",null,null,null,null,null,null,"This table is for any additional organizational competency you need"]
["C33","Novice ","Intermediate","Expert","Competence","Importance",null,"C38","Novice ","Intermediate","Expert","Competence","Importance"]
["Knowledge",null,null,null,null,null,null,"Knowledge"]
["Experience",null,null,null,null,null,null,"Experience"]
["Current",null,null,null,null,null,null,"Current"]
[null,{"$f":"COUNTA(B138:B140)*1","v":0},{"$f":"COUNTA(C138:C140)*2","v":0},{"$f":"COUNTA(D138:D140)*3","v":0},{"$f":"(B141+C141+D141)/9","v":0},{"$f":"IF(F138=0,\"\",F138/(B141+C141+D141))","v":""},null,null,{"$f":"COUNTA(I138:I140)*1","v":0},{"$f":"COUNTA(J138:J140)*2","v":0},{"$f":"COUNTA(K138:K140)*3","v":0},{"$f":"(I141+J141+K141)/9","v":0},{"$f":"IF(M138=0,\"\",M138/(I141+J141+K141))","v":""}]
[]
[]
["Anticipates future situations and plans ahead to meet them",null,null,null,null,null,null,"This table is for any additional organizational competency you need"]
["C34","Novice ","Intermediate","Expert","Competence","Importance",null,"C39","Novice ","Intermediate","Expert","Competence","Importance"]
["Knowledge",null,null,null,null,null,null,"Knowledge"]
["Experience",null,null,null,null,null,null,"Experience"]
["Current",null,null,null,null,null,null,"Current"]
[null,{"$f":"COUNTA(B146:B148)*1","v":0},{"$f":"COUNTA(C146:C148)*2","v":0},{"$f":"COUNTA(D146:D148)*3","v":0},{"$f":"(B149+C149+D149)/9","v":0},{"$f":"IF(F146=0,\"\",F146/(B149+C149+D149))","v":""},null,null,{"$f":"COUNTA(I146:I148)*1","v":0},{"$f":"COUNTA(J146:J148)*2","v":0},{"$f":"COUNTA(K146:K148)*3","v":0},{"$f":"(I149+J149+K149)/9","v":0},{"$f":"IF(M146=0,\"\",M146/(I149+J149+K149))","v":""}]
[]
[]
["Clarifies the key issues in complex and ambiguous situations",null,null,null,null,null,null,"This table is for any additional organizational competency you need"]
["C35","Novice ","Intermediate","Expert","Competence","Importance",null,"C40","Novice ","Intermediate","Expert","Competence","Importance"]
["Knowledge",null,null,null,null,null,null,"Knowledge"]
["Experience",null,null,null,null,null,null,"Experience"]
["Current",null,null,null,null,null,null,"Current"]
[null,{"$f":"COUNTA(B154:B156)*1","v":0},{"$f":"COUNTA(C154:C156)*2","v":0},{"$f":"COUNTA(D154:D156)*3","v":0},{"$f":"(B157+C157+D157)/9","v":0},{"$f":"IF(F154=0,\"\",F154/(B157+C157+D157))","v":""},null,null,{"$f":"COUNTA(I154:I156)*1","v":0},{"$f":"COUNTA(J154:J156)*2","v":0},{"$f":"COUNTA(K154:K156)*3","v":0},{"$f":"(I157+J157+K157)/9","v":0},{"$f":"IF(M154=0,\"\",M154/(I157+J157+K157))","v":""}]

{"sheet":"TechProf","index":3,"n_rows":86,"n_cols":13,"rows_kept":86,"cut":false,"hidden":false,"merged":[[0,0,0,12],[2,0,2,5],[34,7,34,12],[10,0,10,5],[41,0,41,5],[26,0,26,5],[41,7,41,12],[18,7,18,12],[26,7,26,12],[57,0,57,5],[34,0,34,5],[65,0,65,5],[2,7,2,12],[73,0,73,5],[10,7,10,12],[18,0,18,5],[49,0,49,5],[49,7,49,12],[57,7,57,12]]}
["Technical/Professional Competencies"]
[]
["Industrial hygiene and toxicology",null,null,null,null,null,null,"SH&E program management"]
["T1","Novice ","Intermediate","Expert","Competence","Importance",null,"T6","Novice ","Intermediate","Expert","Competence","Importance"]
["Knowledge",null,"X",null,null,3,null,"Knowledge"]
["Experience",null,null,"X",null,null,null,"Experience"]
["Current","X",null,null,null,null,null,"Current"]
[null,{"$f":"COUNTA(B5:B7)*1","v":1},{"$f":"COUNTA(C5:C7)*2","v":2},{"$f":"COUNTA(D5:D7)*3","v":3},{"$f":"(B8+C8+D8)/9","v":0.66666666666666663},{"$f":"IF(F5=0,\"\",F5/(B8+C8+D8))","v":0.5},null,null,{"$f":"COUNTA(I5:I7)*1","v":0},{"$f":"COUNTA(J5:J7)*2","v":0},{"$f":"COUNTA(K5:K7)*3","v":0},{"$f":"(I8+J8+K8)/9","v":0},{"$f":"IF(M5=0,\"\",M5/(I8+J8+K8))","v":""}]
[]
[]
["Design of engineering hazard controls",null,null,null,null,null,null,"Product safety"]
["T2","Novice ","Intermediate","Expert","Competence","Importance",null,"T7","Novice ","Intermediate","Expert","Competence","Importance"]
["Knowledge",null,null,null,null,null,null,"Knowledge"]
["Experience",null,null,null,null,null,null,"Experience"]
["Current",null,null,null,null,null,null,"Current"]
[null,{"$f":"COUNTA(B13:B15)*1","v":0},{"$f":"COUNTA(C13:C15)*2","v":0},{"$f":"COUNTA(D13:D15)*3","v":0},{"$f":"(B16+C16+D16)/9","v":0},{"$f":"IF(F13=0,\"\",F13/(B16+C16+D16))","v":""},null,null,{"$f":"COUNTA(I13:I15)*1","v":0},{"$f":"COUNTA(J13:J15)*2","v":0},{"$f":"COUNTA(K13:K15)*3","v":0},{"$f":"(I16+J16+K16)/9","v":0},{"$f":"IF(M13=0,\"\",M13/(I16+J16+K16))","v":""}]
[]
[]
["Inspections & audits",null,null,null,null,null,null,"Construction safety"]
["T3","Novice ","Intermediate","Expert","Competence","Importance",null,"T8","Novice ","Intermediate","Expert","Competence","Importance"]
["Knowledge",null,null,null,null,null,null,"Knowledge"]
["Experience",null,null,null,null,null,null,"Experience"]
["Current",null,null,null,null,null,null,"Current"]
[null,{"$f":"COUNTA(B21:B23)*1","v":0},{"$f":"COUNTA(C21:C23)*2","v":0},{"$f":"COUNTA(D21:D23)*3","v":0},{"$f":"(B24+C24+D24)/9","v":0},{"$f":"IF(F21=0,\"\",F21/(B24+C24+D24))","v":""},null,null,{"$f":"COUNTA(I21:I23)*1","v":0},{"$f":"COUNTA(J21:J23)*2","v":0},{"$f":"COUNTA(K21:K23)*3","v":0},{"$f":"(I24+J24+K24)/9","v":0},{"$f":"IF(M21=0,\"\",M21/(I24+J24+K24))","v":""}]
[]
[]
["Continued knowledge of SH&E laws, regulations and standards",null,null,null,null,null,null,"Education and training methods"]
["T4","Novice ","Intermediate","Expert","Competence","Importance",null,"T9","Novice ","Intermediate","Expert","Competence","Importance"]
["Knowledge",null,null,null,null,null,null,"Knowledge"]
["Experience",null,null,null,null,null,null,"Experience"]
["Current",null,null,null,null,null,null,"Current"]
[null,{"$f":"COUNTA(B29:B31)*1","v":0},{"$f":"COUNTA(C29:C31)*2","v":0},{"$f":"COUNTA(D29:D31)*3","v":0},{"$f":"(B32+C32+D32)/9","v":0},{"$f":"IF(F29=0,\"\",F29/(B32+C32+D32))","v":""},null,null,{"$f":"COUNTA(I29:I31)*1","v":0},{"$f":"COUNTA(J29:J31)*2","v":0},{"$f":"COUNTA(K29:K31)*3","v":0},{"$f":"(I32+J32+K32)/9","v":0},{"$f":"IF(M29=0,\"\",M29/(I32+J32+K32))","v":""}]
[]
[]
["System and process safety",null,null,null,null,null,null,"Measurement of safety performance"]
["T5","Novice ","Intermediate","Expert","Competence","Importance",null,"T10","Novice ","Intermediate","Expert","Competence","Importance"]
["Knowledge",null,null,null,null,null,null,"Knowledge"]
["Experience",null,null,null,null,null,null,"Experience"]
["Current",null,null,null,null,null,null,"Current"]
[null,{"$f":"COUNTA(B37:B39)*1","v":0},{"$f":"COUNTA(C37:C39)*2","v":0},{"$f":"COUNTA(D37:D39)*3","v":0},{"$f":"(B40+C40+D40)/9","v":0},{"$f":"IF(F37=0,\"\",F37/(B40+C40+D40))","v":""},null,null,{"$f":"COUNTA(I37:I39)*1","v":0},{"$f":"COUNTA(J37:J39)*2","v":0},{"$f":"COUNTA(K37:K39)*3","v":0},{"$f":"(I40+J40+K40)/9","v":0},{"$f":"IF(M37=0,\"\",M37/(I40+J40+K40))","v":""}]
[]
["Human behavior",null,null,null,null,null,null,"Recordkeeping and workers' comp"]
["T11","Novice ","Intermediate","Expert","Competence","Importance",null,"T16","Novice ","Intermediate","Expert","Competence","Importance"]
["Knowledge",null,null,null,null,null,null,"Knowledge"]
["Experience",null,null,null,null,null,null,"Experience"]
["Current",null,null,null,null,null,null,"Current"]
[null,{"$f":"COUNTA(B44:B46)*1","v":0},{"$f":"COUNTA(C44:C46)*2","v":0},{"$f":"COUNTA(D44:D46)*3","v":0},{"$f":"(B47+C47+D47)/9","v":0},{"$f":"IF(F44=0,\"\",F44/(B47+C47+D47))","v":""},null,null,{"$f":"COUNTA(I44:I46)*1","v":0},{"$f":"COUNTA(J44:J46)*2","v":0},{"$f":"COUNTA(K44:K46)*3","v":0},{"$f":"(I47+J47+K47)/9","v":0},{"$f":"IF(M44=0,\"\",M44/(I47+J47+K47))","v":""}]
[]
[]
["Hazard identification and control",null,null,null,null,null,null,"Accident investigation and analysis"]
["T12","Novice ","Intermediate","Expert","Competence","Importance",null,"T17","Novice ","Intermediate","Expert","Competence","Importance"]
["Knowledge",null,null,null,null,null,null,"Knowledge"]
["Experience",null,null,null,null,null,null,"Experience"]
["Current",null,null,null,null,null,null,"Current"]
[null,{"$f":"COUNTA(B52:B54)*1","v":0},{"$f":"COUNTA(C52:C54)*2","v":0},{"$f":"COUNTA(D52:D54)*3","v":0},{"$f":"(B55+C55+D55)/9","v":0},{"$f":"IF(F52=0,\"\",F52/(B55+C55+D55))","v":""},null,null,{"$f":"COUNTA(I52:I54)*1","v":0},{"$f":"COUNTA(J52:J54)*2","v":0},{"$f":"COUNTA(K52:K54)*3","v":0},{"$f":"(I55+J55+K55)/9","v":0},{"$f":"IF(M52=0,\"\",M52/(I55+J55+K55))","v":""}]
[]
[]
["Ergonomics",null,null,null,null,null,null,"Commitment to Safety"]
["T13","Novice ","Intermediate","Expert","Competence","Importance",null,"T18","Novice ","Intermediate","Expert","Competence","Importance"]
["Knowledge",null,null,null,null,null,null,"Knowledge"]
["Experience",null,null,null,null,null,null,"Experience"]
["Current",null,null,null,null,null,null,"Current"]
[null,{"$f":"COUNTA(B60:B62)*1","v":0},{"$f":"COUNTA(C60:C62)*2","v":0},{"$f":"COUNTA(D60:D62)*3","v":0},{"$f":"(B63+C63+D63)/9","v":0},{"$f":"IF(F60=0,\"\",F60/(B63+C63+D63))","v":""},null,null,{"$f":"COUNTA(I60:I62)*1","v":0},{"$f":"COUNTA(J60:J62)*2","v":0},{"$f":"COUNTA(K60:K62)*3","v":0},{"$f":"(I63+J63+K63)/9","v":0},{"$f":"IF(M60=0,\"\",M60/(I63+J63+K63))","v":""}]
[]
[]
["Management and business administration",null,null,null,null,null,null,"This table is for any additional organizational competency you need"]
["T14","Novice ","Intermediate","Expert","Competence","Importance",null,"T19","Novice ","Intermediate","Expert","Competence","Importance"]
["Knowledge",null,null,null,null,null,null,"Knowledge"]
["Experience",null,null,null,null,null,null,"Experience"]
["Current",null,null,null,null,null,null,"Current"]
[null,{"$f":"COUNTA(B68:B70)*1","v":0},{"$f":"COUNTA(C68:C70)*2","v":0},{"$f":"COUNTA(D68:D70)*3","v":0},{"$f":"(B71+C71+D71)/9","v":0},{"$f":"IF(F68=0,\"\",F68/(B71+C71+D71))","v":""},null,null,{"$f":"COUNTA(I68:I70)*1","v":0},{"$f":"COUNTA(J68:J70)*2","v":0},{"$f":"COUNTA(K68:K70)*3","v":0},{"$f":"(I71+J71+K71)/9","v":0},{"$f":"IF(M68=0,\"\",M68/(I71+J71+K71))","v":""}]
[]
[]
["Engineering",null,null,null,null,null,null,"This table is for any additional organizational competency you need"]
["T15","Novice ","Intermediate","Expert","Competence","Importance",null,"T20","Novice ","Intermediate","Expert","Competence","Importance"]
["Knowledge",null,null,null,null,null,null,"Knowledge"]
["Experience",null,null,null,null,null,null,"Experience"]
["Current",null,null,null,null,null,null,"Current"]
[null,{"$f":"COUNTA(B76:B78)*1","v":0},{"$f":"COUNTA(C76:C78)*2","v":0},{"$f":"COUNTA(D76:D78)*3","v":0},{"$f":"(B79+C79+D79)/9","v":0},{"$f":"IF(F76=0,\"\",F76/(B79+C79+D79))","v":""},null,null,{"$f":"COUNTA(I76:I78)*1","v":0},{"$f":"COUNTA(J76:J78)*2","v":0},{"$f":"COUNTA(K76:K78)*3","v":0},{"$f":"(I79+J79+K79)/9","v":0},{"$f":"IF(M76=0,\"\",M76/(I79+J79+K79))","v":""}]
[]
["This table is for any additional organizational competency you need"]
["T21","Novice ","Intermediate","Expert","Competence","Importance"]
["Knowledge"]
["Experience"]
["Current"]
[null,{"$f":"COUNTA(B83:B85)*1","v":0},{"$f":"COUNTA(C83:C85)*2","v":0},{"$f":"COUNTA(D83:D85)*3","v":0},{"$f":"(B86+C86+D86)/9","v":0},{"$f":"IF(F83=0,\"\",F83/(B86+C86+D86))","v":""}]

{"sheet":"Exec","index":4,"n_rows":71,"n_cols":13,"rows_kept":71,"cut":false,"hidden":false,"merged":[[41,0,41,5],[2,7,2,12],[18,0,18,5],[26,7,26,12],[0,0,0,12],[2,0,2,5],[10,7,10,12],[10,0,10,5],[18,7,18,12],[26,0,26,5],[34,7,34,12],[34,0,34,5]]}
["Executive Competencies"]
[]
["Leadership",null,null,null,null,null,null,"Strategic planning"]
["E1","Novice ","Intermediate","Expert","Competence","Importance",null,"E6","Novice ","Intermediate","Expert","Competence","Importance"]
["Knowledge",null,null,null,null,null,null,"Knowledge"]
["Experience",null,null,null,null,null,null,"Experience"]
["Current",null,null,null,null,null,null,"Current"]
[null,{"$f":"COUNTA(B5:B7)*1","v":0},{"$f":"COUNTA(C5:C7)*2","v":0},{"$f":"COUNTA(D5:D7)*3","v":0},{"$f":"(B8+C8+D8)/9","v":0},{"$f":"IF(F5=0,\"\",F5/(B8+C8+D8))","v":""},null,null,{"$f":"COUNTA(I5:I7)*1","v":0},{"$f":"COUNTA(J5:J7)*2","v":0},{"$f":"COUNTA(K5:K7)*3","v":0},{"$f":"(I8+J8+K8)/9","v":0},{"$f":"IF(M5=0,\"\",M5/(I8+J8+K8))","v":""}]
[]
[]
["Time-management",null,null,null,null,null,null,"Achievement orientation"]
["E2","Novice ","Intermediate","Expert","Competence","Importance",null,"E7","Novice ","Intermediate","Expert","Competence","Importance"]
["Knowledge",null,null,null,null,null,null,"Knowledge"]
["Experience",null,null,null,null,null,null,"Experience"]
["Current",null,null,null,null,null,null,"Current"]
[null,{"$f":"COUNTA(B13:B15)*1","v":0},{"$f":"COUNTA(C13:C15)*2","v":0},{"$f":"COUNTA(D13:D15)*3","v":0},{"$f":"(B16+C16+D16)/9","v":0},{"$f":"IF(F13=0,\"\",F13/(B16+C16+D16))","v":""},null,null,{"$f":"COUNTA(I13:I15)*1","v":0},{"$f":"COUNTA(J13:J15)*2","v":0},{"$f":"COUNTA(K13:K15)*3","v":0},{"$f":"(I16+J16+K16)/9","v":0},{"$f":"IF(M13=0,\"\",M13/(I16+J16+K16))","v":""}]
[]
[]
["Performance and goal setting",null,null,null,null,null,null,"Perseverance"]
["E3","Novice ","Intermediate","Expert","Competence","Importance",null,"E8","Novice ","Intermediate","Expert","Competence","Importance"]
["Knowledge",null,null,null,null,null,null,"Knowledge"]
["Experience",null,null,null,null,null,null,"Experience"]
["Current",null,null,null,null,null,null,"Current"]
[null,{"$f":"COUNTA(B21:B23)*1","v":0},{"$f":"COUNTA(C21:C23)*2","v":0},{"$f":"COUNTA(D21:D23)*3","v":0},{"$f":"(B24+C24+D24)/9","v":0},{"$f":"IF(F21=0,\"\",F21/(B24+C24+D24))","v":""},null,null,{"$f":"COUNTA(I21:I23)*1","v":0},{"$f":"COUNTA(J21:J23)*2","v":0},{"$f":"COUNTA(K21:K23)*3","v":0},{"$f":"(I24+J24+K24)/9","v":0},{"$f":"IF(M21=0,\"\",M21/(I24+J24+K24))","v":""}]
[]
[]
["Risk assessment  ",null,null,null,null,null,null,"Perceptual objectivity"]
["E4","Novice ","Intermediate","Expert","Competence","Importance",null,"E9","Novice ","Intermediate","Expert","Competence","Importance"]
["Knowledge",null,null,null,null,null,null,"Knowledge"]
["Experience",null,null,null,null,null,null,"Experience"]
["Current",null,null,null,null,null,null,"Current"]
[null,{"$f":"COUNTA(B29:B31)*1","v":0},{"$f":"COUNTA(C29:C31)*2","v":0},{"$f":"COUNTA(D29:D31)*3","v":0},{"$f":"(B32+C32+D32)/9","v":0},{"$f":"IF(F29=0,\"\",F29/(B32+C32+D32))","v":""},null,null,{"$f":"COUNTA(I29:I31)*1","v":0},{"$f":"COUNTA(J29:J31)*2","v":0},{"$f":"COUNTA(K29:K31)*3","v":0},{"$f":"(I32+J32+K32)/9","v":0},{"$f":"IF(M29=0,\"\",M29/(I32+J32+K32))","v":""}]
[]
[]
["Negotiating and persuasion ",null,null,null,null,null,null,"Order, accuracy, and clarity"]
["E5","Novice ","Intermediate","Expert","Competence","Importance",null,"E10","Novice ","Intermediate","Expert","Competence","Importance"]
["Knowledge",null,null,null,null,null,null,"Knowledge"]
["Experience",null,null,null,null,null,null,"Experience"]
["Current",null,null,null,null,null,null,"Current"]
[null,{"$f":"COUNTA(B37:B39)*1","v":0},{"$f":"COUNTA(C37:C39)*2","v":0},{"$f":"COUNTA(D37:D39)*3","v":0},{"$f":"(B40+C40+D40)/9","v":0},{"$f":"IF(F37=0,\"\",F37/(B40+C40+D40))","v":""},null,null,{"$f":"COUNTA(I37:I39)*1","v":0},{"$f":"COUNTA(J37:J39)*2","v":0},{"$f":"COUNTA(K37:K39)*3","v":0},{"$f":"(I40+J40+K40)/9","v":0},{"$f":"IF(M37=0,\"\",M37/(I40+J40+K40))","v":""}]
[]
["Self-control"]
["E11","Novice ","Intermediate","Expert","Competence","Importance"]
["Knowledge"]
["Experience"]
["Current"]
[null,{"$f":"COUNTA(B44:B46)*1","v":0},{"$f":"COUNTA(C44:C46)*2","v":0},{"$f":"COUNTA(D44:D46)*3","v":0},{"$f":"(B47+C47+D47)/9","v":0},{"$f":"IF(F44=0,\"\",F44/(B47+C47+D47))","v":""}]
[]
[]
["This table is for any additional organizational competency you need"]
["E12","Novice ","Intermediate","Expert","Competence","Importance"]
["Knowledge"]
["Experience"]
["Current"]
[null,{"$f":"COUNTA(B52:B54)*1","v":0},{"$f":"COUNTA(C52:C54)*2","v":0},{"$f":"COUNTA(D52:D54)*3","v":0},{"$f":"(B55+C55+D55)/9","v":0},{"$f":"IF(F52=0,\"\",F52/(B55+C55+D55))","v":""}]
[]
[]
["This table is for any additional organizational competency you need"]
["E13","Novice ","Intermediate","Expert","Competence","Importance"]
["Knowledge"]
["Experience"]
["Current"]
[null,{"$f":"COUNTA(B60:B62)*1","v":0},{"$f":"COUNTA(C60:C62)*2","v":0},{"$f":"COUNTA(D60:D62)*3","v":0},{"$f":"(B63+C63+D63)/9","v":0},{"$f":"IF(F60=0,\"\",F60/(B63+C63+D63))","v":""}]
[]
[]
["This table is for any additional organizational competency you need"]
["E14","Novice ","Intermediate","Expert","Competence","Importance"]
["Knowledge"]
["Experience"]
["Current"]
[null,{"$f":"COUNTA(B68:B70)*1","v":0},{"$f":"COUNTA(C68:C70)*2","v":0},{"$f":"COUNTA(D68:D70)*3","v":0},{"$f":"(B71+C71+D71)/9","v":0},{"$f":"IF(F68=0,\"\",F68/(B71+C71+D71))","v":""}]

{"sheet":"Competency List","index":5,"n_rows":112,"n_cols":5,"rows_kept":112,"cut":false,"hidden":false,"merged":[]}
[null,null,"Competency",null,"I/C Ratio"]
[null,"C00","Core"]
[null,"C01","Clear understanding of the business context of the organization",null,{"$f":"Core!F8","v":""}]
[null,"C02","Awareness of the broader impact of actions on colleagues, community, and environment",null,{"$f":"Core!F16","v":""}]
[null,"C03","Understands internal & external customer needs/exceeds expectations",null,{"$f":"Core!F24","v":""}]
[null,"C04","Considers inter-relationships between customers, suppliers, & organization",null,{"$f":"Core!F32","v":""}]
[null,"C05","Understands business levers; takes advantage of financial and IT tools",null,{"$f":"Core!F40","v":""}]
[null,"C06","Aware of competitor's actions and their impact on the business",null,{"$f":"Core!M8","v":""}]
[null,"C07","Thinks outside the normal parameters",null,{"$f":"Core!M16","v":""}]
[null,"C08","Takes unusual perspectives on situations and challenges",null,{"$f":"Core!M24","v":""}]
[null,"C09","Demonstrates openness to new ideas",null,{"$f":"Core!M32","v":""}]
[null,"C10","Challenges fixed assumptions, strives for breakthroughs as well as incremental solutions; Actively seeks know-how & opportunities from the external environment and applies them",null,{"$f":"Core!M40","v":""}]
[null,"C11","Looks for ways to do things better, faster and more efficiently",null,{"$f":"Core!F47","v":""}]
[null,"C12","Inspires others to contribute in a way that ensures alignment",null,{"$f":"Core!F55","v":""}]
[null,"C13","Willingly takes the lead when challenges occur",null,{"$f":"Core!F63","v":""}]
[null,"C14","Promotes open & effective communication",null,{"$f":"Core!F71","v":""}]
[null,"C15","Coaches others to help their development",null,{"$f":"Core!F79","v":""}]
[null,"C16","Uses a range of styles to influence and gain enrollment",null,{"$f":"Core!M47","v":""}]
[null,"C17","Facilitates others to play to their strengths",null,{"$f":"Core!M55","v":""}]
[null,"C18","Actively promotes a positive team spirit",null,{"$f":"Core!M63","v":""}]
[null,"C19","Builds networks to enhance effectiveness and share knowledge",null,{"$f":"Core!M71","v":""}]
[null,"C20","Actively seeks skill & best practice related to own area of contribution",null,{"$f":"Core!M79","v":""}]
[null,"C21","Demonstrates shared commitment to team success",null,{"$f":"Core!F86","v":""}]
[null,"C22","Demonstrates respect for other people's cultures and perspectives",null,{"$f":"Core!F94","v":""}]
[null,"C23","Focuses efforts and prioritizes work to deliver business value",null,{"$f":"Core!F102","v":""}]
[null,"C24","Overcomes obstacles / adapts  to achieve outstanding results",null,{"$f":"Core!F110","v":""}]
[null,"C25","Exceeds expectations of contribution and performance; takes responsibility to achieve SH&E and business goals",null,{"$f":"Core!F118","v":""}]
[null,"C26","Bias for action - 'just do it', progresses issues even when only partial information is available",null,{"$f":"Core!M86","v":""}]
[null,"C27","Does things before being asked to or forced to by events; manages the balance of cost and value",null,{"$f":"Core!M94","v":""}]
[null,"C28","Information seeking",null,{"$f":"Core!M102","v":""}]
[null,"C29","Analytical thinking",null,{"$f":"Core!M110","v":""}]
[null,"C30","Conceptual thinking",null,{"$f":"Core!M118","v":""}]
[null,"C31","Planning",null,{"$f":"Core!F125","v":""}]
[null,"C32","Organizational skills",null,{"$f":"Core!F133","v":""}]
[null,"C33","Considers differing positions or opposing viewpoints",null,{"$f":"Core!F141","v":""}]
[null,"C34","Anticipates future situations and plans ahead to meet them",null,{"$f":"Core!F149","v":""}]
[null,"C35","Clarifies the key issues in complex and ambiguous situations",null,{"$f":"Core!F157","v":""}]
[null,"C36","Uses innovative approaches to understand implications of seemingly unrelated information",null,{"$f":"Core!M125","v":""}]
[null,"C37","Takes appropriate risks and manages the implications of actions",null,{"$f":"Core!M133","v":""}]
[null,"C38",null,null,{"$f":"Core!M141","v":""}]
[null,"C39",null,null,{"$f":"Core!M149","v":""}]
[null,"C40",null,null,{"$f":"Core!M157","v":""}]
[null,"E00","Executive"]
[null,"E01","Leadership",null,{"$f":"Exec!F8","v":""}]
[null,"E02","Time-management",null,{"$f":"Exec!F16","v":""}]
[null,"E03","Performance and goal setting",null,{"$f":"Exec!F24","v":""}]
[null,"E04","Risk assessment  ",null,{"$f":"Exec!F32","v":""}]
[null,"E05","Negotiating and persuasion ",null,{"$f":"Exec!F40","v":""}]
[null,"E06","Strategic planning",null,{"$f":"Exec!M8","v":""}]
[null,"E07","Achievement orientation",null,{"$f":"Exec!M16","v":""}]
[null,"E08","Perseverance",null,{"$f":"Exec!M24","v":""}]
[null,"E09","Perceptual objectivity",null,{"$f":"Exec!M32","v":""}]
[null,"E10","Order, accuracy, and clarity",null,{"$f":"Exec!M40","v":""}]
[null,"E11","Self-control",null,{"$f":"Exec!F47","v":""}]
[null,"E12",null,null,{"$f":"Exec!F55","v":""}]
[null,"E13",null,null,{"$f":"Exec!F63","v":""}]
[null,"E14",null,null,{"$f":"Exec!F71","v":""}]
[null,"F00","Foundational"]
[null,"F01","Leading through personal example",null,{"$f":"Foundational!F8","v":""}]
[null,"F02","Managing risk / providing assurance",null,{"$f":"Foundational!F16","v":""}]
[null,"F03","Delivering SH&E  communication",null,{"$f":"Foundational!F24","v":""}]
[null,"F04","Managing change",null,{"$f":"Foundational!F32","v":""}]
[null,"F05","Effective accident investigation",null,{"$f":"Foundational!F40","v":""}]
[null,"F06","Planning emergency preparedness",null,{"$f":"Foundational!M8","v":""}]
[null,"F07","Actively listening",null,{"$f":"Foundational!M16","v":""}]
[null,"F08","Involving others",null,{"$f":"Foundational!M24","v":""}]
[null,"F09","Influencing others",null,{"$f":"Foundational!M32","v":""}]
[null,"F10","Proper use of written, spoken language(s)",null,{"$f":"Foundational!M40","v":""}]
[null,"F11","Understanding body language",null,{"$f":"Foundational!F47","v":""}]
[null,"F12","Timely and relevant communication",null,{"$f":"Foundational!F55","v":""}]
[null,"F13","Utilizing multi-media",null,{"$f":"Foundational!F63","v":""}]
[null,"F14","Negotiation",null,{"$f":"Foundational!F71","v":""}]
[null,"F15","Relationship building",null,{"$f":"Foundational!F79","v":""}]
[null,"F16","Web use",null,{"$f":"Foundational!M47","v":""}]
[null,"F17","Personal productivity",null,{"$f":"Foundational!M55","v":""}]
[null,"F18","Connectivity",null,{"$f":"Foundational!M63","v":""}]
[null,"F19","Collaboration",null,{"$f":"Foundational!M71","v":""}]
[null,"F20","Statistical analysis",null,{"$f":"Foundational!M79","v":""}]
[null,"F21","Basic business and technical software",null,{"$f":"Foundational!F86","v":""}]
[null,"F22","Information security",null,{"$f":"Foundational!F94","v":""}]
[null,"F23","External financial world",null,{"$f":"Foundational!F102","v":""}]
[null,"F24","Accounts, control & planning , and economic evaluation methodology",null,{"$f":"Foundational!F110","v":""}]
[null,"F25","Project planning",null,{"$f":"Foundational!F118","v":""}]
[null,"F26","Project estimating",null,{"$f":"Foundational!M86","v":""}]
[null,"F27","Project controls",null,{"$f":"Foundational!M94","v":""}]
[null,"F28","Project risk management",null,{"$f":"Foundational!M102","v":""}]
[null,"F29","Manage needs, sources, and purchases",null,{"$f":"Foundational!M110","v":""}]
[null,"F30",null,null,{"$f":"Foundational!M118","v":""}]
[null,"F31",null,null,{"$f":"Foundational!F125","v":""}]
[null,"F32",null,null,{"$f":"Foundational!F133","v":""}]
[null,"T00","Technical/Professional"]
[null,"T01","Industrial hygiene and toxicology",null,{"$f":"TechProf!F8","v":0.5}]
[null,"T02","Design of engineering hazard controls",null,{"$f":"TechProf!F16","v":""}]
[null,"T03","Inspections & audits",null,{"$f":"TechProf!F24","v":""}]
[null,"T04","Continued knowledge of SH&E laws, regulations and standards",null,{"$f":"TechProf!F32","v":""}]
[null,"T05","System and process safety",null,{"$f":"TechProf!F40","v":""}]
[null,"T06","SH&E program management",null,{"$f":"TechProf!M8","v":""}]
[null,"T07","Product safety",null,{"$f":"TechProf!M16","v":""}]
[null,"T08","Construction safety",null,{"$f":"TechProf!M24","v":""}]
[null,"T09","Education and training methods",null,{"$f":"TechProf!M32","v":""}]
[null,"T10","Measurement of safety performance",null,{"$f":"TechProf!M40","v":""}]
[null,"T11","Human behavior",null,{"$f":"TechProf!F47","v":""}]
[null,"T12","Hazard identification and control",null,{"$f":"TechProf!F55","v":""}]
[null,"T13","Ergonomics",null,{"$f":"TechProf!F63","v":""}]
[null,"T14","Management and business administration",null,{"$f":"TechProf!F71","v":""}]
[null,"T15","Engineering",null,{"$f":"TechProf!F79","v":""}]
[null,"T16","Recordkeeping and workers comp",null,{"$f":"TechProf!M47","v":""}]
[null,"T17","Accident investigation and analysis",null,{"$f":"TechProf!M55","v":""}]
[null,"T18","Commitment to Safety",null,{"$f":"TechProf!M63","v":""}]
[null,"T19",null,null,{"$f":"TechProf!M71","v":""}]
[null,"T20",null,null,{"$f":"TechProf!M79","v":""}]
[null,"T21",null,null,{"$f":"TechProf!F86","v":""}]

{"sheet":"Career Progression Descriptors","index":6,"n_rows":5,"n_cols":4,"rows_kept":5,"cut":false,"hidden":false,"merged":[[0,1,0,3]]}
[null,"AWARENESS LEVEL"]
[null,"Novice","Intermediate","Expert"]
["Knowledge","None or limited knowledge of basic principles","Detailed knowledge of principles \nand applications - Current with technology, methods, and potential business benefits","Complete and integrated knowledge of technical and business practices"]
["Experience","Has not necessarily been a practitioner in this area","Acquired experience in wide range \nof areas","Many years served as an active practitioner on a global scale"]
["How Active","Never active in the area","Currently or recently active in \nthe area","Continual practitioner with credentials or licensed"]